Workbook

Sheet 連合専用条件入力画面
F2: 連合専用条件入力画面
C4: ①～⑤の□に入力してください。
N5: =IF(H17=1,"消費税込みの料金",IF(H17=2,"消費税抜きの料金","")) -> 消費税込みの料金
C6: ①現在の水道料金算定の メーター口径は？ | H6: 40 | I6: ㎜ | N6: シュミレーションの結果
C8: ②各部屋についている子メーター 又は引込管の口径は？ | H8: 20 | I8: ㎜ | N8: 現在の水道料金 | Q8: =IF(H17=1,ROUNDDOWN(Q23*1.1,0),IF(H17=2,Q23,"")) -> 88396
C10: ③各部屋の世帯数は？ | H10: 10 | I10: 部屋
C12: ④前月の水道使用量は？ | H12: 300 | I12: ㎥ | N12: 連合専用水道料金 | Q12: =IF(H17=1,ROUNDDOWN(Q28*1.1,0),IF(H17=2,Q28,"")) -> 67760
C14: ⑤下水道は入っていますか？ | H14: 1
C15: はいの場合・・・・・・1 | N15: 差 額 | Q15: =Q8-Q12 -> 20636
C16: いいえの場合・・・・・・2
C17: ⑥消費税込み料金を表示しますか？ | H17: 1
C18: はいの場合・・・・・・1
C19: いいえの場合・・・・・・2
N20: 現在の水道料金内訳(消費税抜き)
N21: 上水道料金 | Q21: =上下水道料金計算!F61 -> 59420
N22: 下水道料金 | Q22: =IF(H14=1,上下水道料金計算!F130,"") -> 20940
N23: 合 計 | Q23: =SUM(Q21:Q22) -> 80360
N25: 連合専用水道料金の内訳
N26: 上水道料金 | Q26: =上下水道料金計算!F38 -> 41200
N27: 下水道料金 | Q27: =IF(H14=1,上下水道料金計算!F108,"") -> 20400
N28: 合 計 | Q28: =SUM(Q26:Q27) -> 61600
V30: 水道口径 | X30: 部屋の口径 | Z30: 下水道の有無
V31: 13 | X31: 13 | Z31: 1
V32: 20 | X32: 20 | Z32: 2
V33: 25 | X33: 25
V34: 30 | X34: 30
V35: 40 | X35: 40
V36: 50 | X36: 50
V37: 75～100 | X37: 75～100
V38: 150 | X38: 150

Sheet 上下水道料金計算
B1: 上水道連合計算表
B3: 口径 | C3: =連合専用条件入力画面!$H$8 -> 20 | D3: 世帯数 | E3: =連合専用条件入力画面!$H$10 -> 10 | F3: 前月使用水量 | H3: =連合専用条件入力画面!$H$12 -> 300
F5: 基本水量
A6: 連合の場合の基本水量 | B6: 8 | C6: × | D6: =$E$3 -> 10 | E6: ＝ | F6: =B6*D6 -> 80
B7: 口径別
A8: 基本料金 | B8: =SUMIF(P29:R37,C3,R29:R37) -> 1370 | C8: × | D8: =$E$3 -> 10 | E8: ＝ | F8: =B8*D8 -> 13700
A10: 8㎥を超え30㎥まで | B10: 単価 | C10: =IF($C$3>=30,料金表!G13,IF($C$3<=25,料金表!G13,"")) -> 125 | J10: =CONCATENATE(B6*E3,"㎥を超え",C11*E3,"㎥まで") -> 80㎥を超え300㎥まで
B11: 水量 | C11: 30 | D11: × | E11: =$E$3 -> 10 | F11: ＝ | G11: =C11*E11 -> 300 | J11: MAX | K11: =G11-F6 -> 220 | L11: =K11*C10 -> 27500
A13: 30㎥を超え50㎥まで | B13: 単価 | C13: =IF($C$3>=30,料金表!H13,IF($C$3<=25,料金表!H13,"")) -> 145 | J13: =CONCATENATE(TEXT(C11*$E$3,"#,##0"),"㎥を超え",TEXT(C14*$E$3,"#,##0"),"㎥まで") -> 300㎥を超え500㎥まで
B14: 水量 | C14: 50 | D14: × | E14: =$E$3 -> 10 | F14: ＝ | G14: =C14*E14 -> 500 | J14: MAX | K14: =G14-G11 -> 200 | L14: =K14*C13 -> 29000
A16: 50㎥を超え100㎥まで | B16: 単価 | C16: =IF($C$3>=30,料金表!I13,IF($C$3<=25,料金表!I13,"")) -> 170 | J16: =CONCATENATE(TEXT(C14*$E$3,"#,##0"),"㎥を超え",TEXT(C17*$E$3,"#,##0"),"㎥まで") -> 500㎥を超え1,000㎥まで
B17: 水量 | C17: 100 | D17: × | E17: =$E$3 -> 10 | F17: ＝ | G17: =C17*E17 -> 1000 | J17: MAX | K17: =G17-G14 -> 500 | L17: =K17*C16 -> 85000
A19: 100㎥を超え400㎥まで | B19: 単価 | C19: =IF($C$3>=30,料金表!J13,IF($C$3<=25,料金表!J13,"")) -> 200 | J19: =CONCATENATE(TEXT(C17*$E$3,"#,##0"),"㎥を超え",TEXT(C20*$E$3,"#,##0"),"㎥まで") -> 1,000㎥を超え4,000㎥まで
B20: 水量 | C20: 400 | D20: × | E20: =$E$3 -> 10 | F20: ＝ | G20: =C20*E20 -> 4000 | J20: MAX | K20: =G20-G17 -> 3000 | L20: =K20*C19 -> 600000
A22: 400㎥を超えるもの | B22: 単価 | C22: =IF($C$3>=30,料金表!K13,IF($C$3<=25,料金表!K13,"")) -> 240
B23: 水量 | C23: 400
A25: 0㎥を超え8㎥まで 口径30㎜以上に適用 | B25: 単価 | C25: =IF($C$3>=30,料金表!F30,IF($C$3<=25,"","")) -> 
B26: 水量 | C26: 8 | D26: × | E26: =$E$3 -> 10 | F26: ＝ | G26: =C26*E26 -> 80
B28: 水量 | D28: 単価 | F28: 使用料金 | P28: 口径別 | Q28: 単位 | R28: 基本料金
A29: =CONCATENATE(0,"㎥を超え",8*$E$3,"㎥まで基本料金") -> 0㎥を超え80㎥まで基本料金 | B29: =E3*8 -> 80 | C29: × | D29: =SUMIF(P29:R37,C3,R29:R37) -> 1370 | E29: ＝ | F29: =IF(B29="","",$E$3*D29) -> 13700 | G29: 基本料金 | P29: 13 | Q29: ㎜ | R29: =料金表!D6 -> 840
B30: 超過水量 | D30: 単価
A31: =CONCATENATE(TEXT(8*$E$3,"#,##0"),"㎥を超え",TEXT(30*$E$3,"#,##0"),"㎥まで") -> 80㎥を超え300㎥まで | B31: =IF($H$3>=G11,K11,IF(F6<$H$3,$H$3-F6,"")) -> 220 | C31: =IF(B31="","","×") -> × | D31: =IF(B31="","",料金表!$G$13) -> 125 | E31: =IF(B31="","","＝") -> ＝ | F31: =IF(B31="","",B31*D31) -> 27500 | P31: 20 | Q31: ㎜ | R31: =料金表!D7 -> 1370
A32: =CONCATENATE(TEXT(30*$E$3,"#,##0"),"㎥を超え",TEXT(50*$E$3,"#,##0"),"㎥まで") -> 300㎥を超え500㎥まで | B32: =IF($H$3>=G14,K14,IF(H3<=G11,"",H3-G11)) ->  | C32: =IF(B32="","","×") ->  | D32: =IF(B32="","",料金表!$H$13) ->  | E32: =IF(B32="","","＝") ->  | F32: =IF(B32="","",B32*D32) ->  | P32: 25 | Q32: ㎜ | R32: =料金表!D8 -> 1890
A33: =CONCATENATE(TEXT(50*$E$3,"#,##0"),"㎥を超え",TEXT(100*$E$3,"#,##0"),"㎥まで") -> 500㎥を超え1,000㎥まで | B33: =IF($H$3>=G17,K17,IF(H3<=G14,"",H3-G14)) ->  | D33: =IF(B33="","",料金表!$I$13) ->  | P33: 30 | Q33: ㎜ | R33: =料金表!D9 -> 2180
A34: =CONCATENATE(TEXT(100*$E$3,"#,##0"),"㎥を超え",TEXT(400*$E$3,"#,##0"),"㎥まで") -> 1,000㎥を超え4,000㎥まで | B34: =IF($H$3>=G20,K20,IF(H3<=G17,"",H3-G17)) ->  | D34: =IF(B34="","",料金表!$J$13) ->  | P34: 40 | Q34: ㎜ | R34: =料金表!D10 -> 4390
A35: =CONCATENATE(TEXT(400*$E$3,"#,##0"),"㎥を超えるもの") -> 4,000㎥を超えるもの | B35: =IF(H3>G20,H3-G20,"") ->  | D35: =IF(B35="","",料金表!$K$13) ->  | P35: 50 | Q35: ㎜ | R35: =料金表!D11 -> 7270
A36: =CONCATENATE("0㎥を超え",F6,"㎥まで ","口径30㎜以上に適用") -> 0㎥を超え80㎥まで 口径30㎜以上に適用 | B36: =IF($C$3<=25,"",IF($H$3<=F6,$H$3,8*E3)) ->  | C36: =IF(B36="","","×") ->  | D36: =IF(B36="","",110) ->  | P36: 75～100 | Q36: ㎜ | R36: =料金表!D12 -> 16500
P37: 150 | Q37: ㎜ | R37: =料金表!D13 -> 63750
A38: 合計使用水量 | B38: =F6+SUM(B31:B35) -> 300 | D38: 使用料金合計＝ | F38: =SUM(F29:F37) -> 41200
A40: ※0㎥を越え８㎥までの水量表示がある場合は合計使用水量の中に含まれています。
B47: 通常の水道料金計算表
B49: 口径 | C49: =連合専用条件入力画面!$H$6 -> 40 | D49: 世帯数 | E49: =連合専用条件入力画面!$H$10 -> 10 | F49: 前月使用水量 | H49: =連合専用条件入力画面!$H$12 -> 300
B51: 水量 | D51: 単価 | F51: 使用料金
A52: =CONCATENATE(0,"㎥を超え",8,"㎥まで基本料金") -> 0㎥を超え8㎥まで基本料金 | B52: =8 -> 8 | C52: × | D52: =SUMIF(P29:R37,C49,R29:R37) -> 4390 | E52: ＝ | F52: =IF(B52="","",D52*1) -> 4390 | G52: 基本料金
B53: 超過水量 | D53: 単価
A54: =CONCATENATE(8,"㎥を超え",30,"㎥まで") -> 8㎥を超え30㎥まで | B54: =IF($H$49>=30,22,IF(8<$H$49,$H$49-8,"")) -> 22 | C54: =IF(B54="","","×") -> × | D54: =IF(B54="","",料金表!$G$13) -> 125 | E54: =IF(B54="","","＝") -> ＝ | F54: =IF(B54="","",B54*D54) -> 2750
A55: =CONCATENATE(30,"㎥を超え",50,"㎥まで") -> 30㎥を超え50㎥まで | B55: =IF($H$49>=50,20,IF(30<$H$49,H49-30,"")) -> 20 | C55: × | D55: =IF(B55="","",料金表!$H$13) -> 145 | E55: ＝ | F55: =IF(B55="","",B55*D55) -> 2900
A56: =CONCATENATE(50,"㎥を超え",100,"㎥まで") -> 50㎥を超え100㎥まで | B56: =IF($H$49>=100,50,IF(50<$H$49,H49-50,"")) -> 50 | C56: × | D56: =IF(B56="","",料金表!$I$13) -> 170 | E56: ＝ | F56: 8500
A57: =CONCATENATE(100,"㎥を超え",400,"㎥まで") -> 100㎥を超え400㎥まで | B57: =IF($H$49>=400,300,IF(100<$H$49,H49-100,"")) -> 200 | C57: × | D57: =IF(B57="","",料金表!$J$13) -> 200 | E57: ＝ | F57: 40000
A58: =CONCATENATE(400,"㎥を超えるもの") -> 400㎥を超えるもの | B58: =IF($H$49>=400,H49-400,IF(400<$H$49,H49-400,"")) ->  | D58: =IF(B58="","",料金表!$K$13) -> 
A59: 0㎥を超え8㎥まで 口径30㎜以上に適用 | B59: =IF(C49<=25,"",IF($H$3<=8,$H$3,8)) -> 8 | C59: =IF(B59="","","×") -> × | D59: =IF(B59="","",110) -> 110 | E59: =IF(B59="","","＝") -> ＝ | F59: 880
A61: 合計使用水量 | B61: =B6+SUM(B54:B58) -> 300 | D61: 使用料金合計＝ | F61: =SUM(F52:F60) -> 59420
A63: ※0㎥を越え８㎥までの水量表示がある場合は合計使用水量の中に含まれています。
B70: 下水道連合計算表
B72: 口径 | C72: =連合専用条件入力画面!$H$8 -> 20 | D72: 世帯数 | E72: =連合専用条件入力画面!$H$10 -> 10 | F72: 前月使用水量 | H72: =連合専用条件入力画面!$H$12 -> 300
A74: 連合の場合の基本水量 | B74: =料金表!O6 -> 8 | C74: × | D74: =$E$3 -> 10 | E74: ＝ | F74: =B74*D74 -> 80
B75: 口径別
A76: 基本料金 | B76: 500 | C76: × | D76: =$E$3 -> 10 | E76: ＝ | F76: =B76*D76 -> 5000
A78: =CONCATENATE($F$74,"㎥を超え",上下水道料金計算!$G$79,"㎥まで") -> 80㎥を超え300㎥まで | B78: 単価 | C78: =料金表!S7 -> 70 | J78: 50㎥を超え150㎥まで
B79: 水量 | C79: =料金表!Q7 -> 30 | D79: × | E79: =$E$3 -> 10 | F79: ＝ | G79: =C79*E79 -> 300 | J79: MAX | K79: =G79-F74 -> 220 | L79: =K79*C78 -> 15400
A81: =CONCATENATE($G$79,"㎥を超え",$G$82,"㎥まで") -> 300㎥を超え500㎥まで | B81: 単価 | C81: =料金表!S8 -> 70 | J81: 150㎥を超え250㎥まで
B82: 水量 | C82: =料金表!Q8 -> 50 | D82: × | E82: =$E$3 -> 10 | F82: ＝ | G82: =C82*E82 -> 500 | J82: MAX | K82: =G82-G79 -> 200 | L82: =K82*C81 -> 14000
A84: =CONCATENATE($G$82,"㎥を超え",$G$85,"㎥まで") -> 500㎥を超え1000㎥まで | B84: 単価 | C84: =料金表!S9 -> 70 | J84: 250㎥を超え500㎥まで
B85: 水量 | C85: =料金表!Q9 -> 100 | D85: × | E85: =$E$3 -> 10 | F85: ＝ | G85: =C85*E85 -> 1000 | J85: MAX | K85: =G85-G82 -> 500 | L85: =K85*C84 -> 35000
A87: =CONCATENATE($G$82,"㎥を超え",$G$88,"㎥まで") -> 500㎥を超え4000㎥まで | B87: 単価 | C87: =料金表!S10 -> 70 | J87: 250㎥を超え2000㎥まで
B88: 水量 | C88: =料金表!Q10 -> 400 | D88: × | E88: =$E$3 -> 10 | F88: ＝ | G88: =C88*E88 -> 4000 | J88: MAX | K88: =G88-G85 -> 3000 | L88: =K88*C87 -> 210000
A89: =CONCATENATE(料金表!$O$11,"㎥を超えるもの") -> 400㎥を超えるもの | B89: 単価 | C89: =料金表!S11 -> 70
B90: 水量 | C90: =料金表!O11*D74 -> 4000
C94: 下水道連合専用料金計算書
B96: 世帯数 | C96: =E49 -> 10 | D96: 前月使用水量 | F96: =H49 -> 300
F97: 基本水量
A98: 連合の場合の基本使用水量 | B98: =料金表!O6 -> 8 | C98: × | D98: =C96 -> 10 | E98: ＝ | F98: =B98*D98 -> 80
B100: 水量 | D100: 単価 | F100: 使用料金 | G100: 備 考
A101: =CONCATENATE("0㎥を越え",F98,"㎥まで基本水量") -> 0㎥を越え80㎥まで基本水量 | D101: 500 | E101: ＝ | F101: =D98*D101 -> 5000
B102: 超過水量 | D102: 単価
A103: =CONCATENATE(F74,"㎥を超え",G79,"㎥まで") -> 80㎥を超え300㎥まで | B103: =IF($H$72>=G79,K79,IF(F74<H72,$H$72-F74,"")) -> 220 | C103: =IF(B103="","","×") -> × | D103: =IF(B103="","",料金表!S7) -> 70 | E103: =IF(B103="","","＝") -> ＝ | F103: =IF(B103="","",B103*D103) -> 15400
A104: =CONCATENATE(G79,"㎥を超え",G82,"㎥まで") -> 300㎥を超え500㎥まで | B104: =IF($H$72>=G82,K82,IF($H$72<G79,"",$H$72-G79)) -> 0 | C104: × | D104: =IF(B104="","",料金表!S8) -> 70 | E104: ＝ | F104: =IF(B104="","",B104*D104) -> 0
A105: =CONCATENATE(G82,"㎥を超え",G85,"㎥まで") -> 500㎥を超え1000㎥まで | B105: =IF($H$72>=G85,K85,IF($H$72<=G82,"",$H$72-G82)) ->  | D105: =IF(B105="","",料金表!S9) -> 
A106: =CONCATENATE(G85,"㎥を超え",G88,"㎥まで") -> 1000㎥を超え4000㎥まで | B106: =IF($H$72>=G88,K88,IF($H$72<G85,"",$H$72-G85)) ->  | D106: =IF(B106="","",料金表!S10) -> 
A107: =CONCATENATE(G88,"㎥を超えるもの") -> 4000㎥を超えるもの | B107: =IF($H$72>=G88,$H$72-G88,"") ->  | D107: =IF(B107="","",料金表!S11) ->  | E107: =IF(B107="","","＝") ->  | F107: =IF(B107="","",B107*D107) -> 
A108: 水量 | B108: =SUM(B103:B107)+F98 -> 300 | E108: 合計 | F108: =SUM(F103:F107)+F101 -> 20400
C117: 下水道通常の料金計算書
B119: 世帯数 | C119: =連合専用条件入力画面!H10 -> 10 | D119: 前月使用水量 | F119: =連合専用条件入力画面!H12 -> 300
B121: 水量 | D121: 単価 | F121: 使用料金 | G121: 備 考
A122: =CONCATENATE("0㎥を越え",B74,"㎥まで基本水量") -> 0㎥を越え8㎥まで基本水量 | B122: 8 | D122: 500 | E122: ＝ | F122: =D122 -> 500
B123: 超過水量 | D123: 単価
A124: =CONCATENATE(TEXT(料金表!O7,"#,##0"),"㎥を超え",TEXT(料金表!Q7,"#,##0"),"㎥まで") -> 8㎥を超え30㎥まで | B124: =IF($F$119>=料金表!Q7,料金表!Q7-料金表!O7,IF($F$119<=料金表!O6,"",$F$119-料金表!O6)) -> 22 | C124: =IF(B124="","","×") -> × | D124: =IF(B124="","",料金表!S7) -> 70 | E124: =IF(B124="","","=") -> = | F124: =IF(B124="","",B124*D124) -> 1540
A125: =CONCATENATE(TEXT(料金表!O8,"#,##0"),"㎥を超え",TEXT(料金表!Q8,"#,##0"),"㎥まで") -> 30㎥を超え50㎥まで | B125: =IF($F$119>=料金表!Q8,料金表!Q8-料金表!O8,IF($F$119<=料金表!O8,"",$F$119-料金表!O8)) -> 20 | C125: =IF(B125="","","×") -> × | D125: =IF(B125="","",料金表!S8) -> 70 | E125: =IF(B125="","","=") -> = | F125: =IF(B125="","",B125*D125) -> 1400
A126: =CONCATENATE(TEXT(料金表!O9,"#,##0"),"㎥を超え",TEXT(料金表!Q9,"#,##0"),"㎥まで") -> 50㎥を超え100㎥まで | B126: =IF($F$119>=料金表!Q9,料金表!Q9-料金表!O9,IF($F$119<=料金表!O9,"",$F$119-料金表!O9)) -> 50 | C126: × | D126: =IF(B126="","",料金表!S9) -> 70 | E126: = | F126: 3500
A127: =CONCATENATE(TEXT(料金表!O10,"#,##0"),"㎥を超え",TEXT(料金表!Q10,"#,##0"),"㎥まで") -> 100㎥を超え400㎥まで | B127: =IF($F$119>=料金表!Q10,料金表!Q10-料金表!O10,IF($F$119<=料金表!O10,"",$F$119-料金表!O10)) -> 200 | C127: × | D127: =IF(B127="","",料金表!S10) -> 70 | E127: = | F127: 14000
A128: =CONCATENATE(TEXT(料金表!O11,"#,##0"),"㎥を超えるもの") -> 400㎥を超えるもの | B128: =IF($H$72>=料金表!O11,上下水道料金計算!F119-料金表!O11,"") ->  | C128: =IF(B128="","","×") ->  | D128: =IF(B128="","",料金表!S11) ->  | E128: =IF(B128="","","=") ->  | F128: =IF(B128="","",B128*D128) -> 
A130: 水量 | B130: =SUM(B124:B129)+10 -> 302 | E130: 合計 | F130: =SUM(F122:F129) -> 20940

Sheet 料金表
C3: 上水道料金表 | N3: 下水道料金表
A5: 種別 | B5: 用途別 | C5: メーター 口径 | D5: 基本料金 (１ヶ月につき) | F5: 超過料金 | M5: 用途別 | N5: メーター 口径 | O5: 水量 | S5: 料金
A6: 専用 給水 装置 | B6: 一般用 | C6: 13 | D6: 840 | E6: 使用 水量 8㎥まで | F6: 使用水量0㎥を超え8㎥まで口径30㎜以上に適用 | G6: 使用水量8㎥を超え30㎥まで | H6: 使用水量30㎥を超え50㎥まで | I6: 使用水量50㎥を超え100㎥まで | J6: 使用水量100㎥を超え400㎥まで | K6: 使用水量400㎥を超を超えるもの | M6: 一般用 | N6: 基本料金 | O6: 8 | S6: 500
C7: 20 | D7: 1370 | O7: =O6 -> 8 | P7: を超え | Q7: 30 | S7: 70
C8: 25 | D8: 1890 | O8: =Q7 -> 30 | P8: を超え | Q8: 50 | S8: 70
C9: 30 | D9: 2180 | O9: =Q8 -> 50 | P9: を超え | Q9: 100 | S9: 70
C10: 40 | D10: 4390 | O10: =Q9 -> 100 | P10: を超え | Q10: 400 | S10: 70
C11: 50 | D11: 7270 | O11: 400 | S11: 70
C12: 75㎜～ １00㎜含む | D12: 16500 | F12: 1㎥ につき
C13: 150 | D13: 63750 | F13: 110 | G13: 125 | H13: 145 | I13: 170 | J13: 200 | K13: 240
B14: 臨時用 | C14: 1㎥につき450 円 | M14: ※連合の新規の申請の場合は、工務係
A15: 私設消 火栓 | B15: 演習用 | C15: 1個1回3分毎に800円
A16: 連合専用 給水装置 | B16: 1戸(世帯)につき基本料金は、設置メーター又は引込み管口径による。この場合の料金算定の基礎となる使用量は、各戸均等に使用したものとする。
A18: 上記金額は、税抜きです・消費税をかけ、端数については、切捨てる。

Sheet 水道連合専用との比較表
C2: 連合の計算について(上水道) | M2: 通常の計算について(上水道)
B4: =CONCATENATE("口径",連合専用条件入力画面!H8,"㎜ ",連合専用条件入力画面!H10,"世帯 使用水量 ",連合専用条件入力画面!H12,"㎥の場合") -> 口径20㎜ 10世帯 使用水量 300㎥の場合 | L4: =CONCATENATE("口径 ",上下水道料金計算!C49,"㎜ ",上下水道料金計算!E3,"世帯 使用水量 ",上下水道料金計算!H3,"㎥の場合") -> 口径 40㎜ 10世帯 使用水量 300㎥の場合
B6: =CONCATENATE("連合",上下水道料金計算!C3,"㎜の",連合専用条件入力画面!H10,"世帯の基本料金・水量") -> 連合20㎜の10世帯の基本料金・水量 | L6: 基本料金・水量は
B8: =CONCATENATE("上下水道使用量計算 ",8,"㎥×",連合専用条件入力画面!H10,"世帯＝",8*連合専用条件入力画面!H10,"㎥") -> 上下水道使用量計算 8㎥×10世帯＝80㎥ | L8: ○基本水量は、8㎥まで | R8: 金 額 | S8: 水 量
B10: =CONCATENATE("上下水道使用料金計算 ",TEXT(上下水道料金計算!B8,"#,##0"),"円(税抜き) × ",連合専用条件入力画面!H10,"世帯＝",TEXT(上下水道料金計算!F8,"#,##0"),"(税抜き)") -> 上下水道使用料金計算 1,370円(税抜き) × 10世帯＝13,700(税抜き) | L10: =CONCATENATE("○基本料金は、",TEXT(上下水道料金計算!D52,"#,##0"),"円(税抜き)") -> ○基本料金は、4,390円(税抜き) | R10: =上下水道料金計算!D52 -> 4390 | S10: 8
M11: =CONCATENATE("※0㎥～8㎥までは、同額 ",TEXT(R10,"#,##0"),"円(税抜き)") -> ※0㎥～8㎥までは、同額 4,390円(税抜き)
B12: =CONCATENATE(連合専用条件入力画面!H10*8,"㎥までは、",TEXT(上下水道料金計算!B8*上下水道料金計算!D8,"#,##0"),"円") -> 80㎥までは、13,700円 | E12: =CONCATENATE("※0㎥～",上下水道料金計算!F6,"㎥までは、同額",TEXT(上下水道料金計算!F8*1.08,"#,##0"),"円(税込額)") -> ※0㎥～80㎥までは、同額14,796円(税込額)
L13: 重量料金
B14: =CONCATENATE(上下水道料金計算!H3,"㎥－",上下水道料金計算!F6,"㎥＝",上下水道料金計算!H3-上下水道料金計算!F6,"㎥") -> 300㎥－80㎥＝220㎥ | E14: =CONCATENATE("のこりの",上下水道料金計算!H3-上下水道料金計算!F6,"㎥は") -> のこりの220㎥は | L14: =上下水道料金計算!A54 -> 8㎥を超え30㎥まで
L15: =CONCATENATE(上下水道料金計算!B54,"㎥ × ",上下水道料金計算!D54,"円 ＝ ",TEXT(上下水道料金計算!F54,"#,##0"),"円(税抜き) ") -> 22㎥ × 125円 ＝ 2,750円(税抜き) | R15: =上下水道料金計算!F54 -> 2750 | S15: =上下水道料金計算!B54 -> 22
B16: =CONCATENATE("通常の従量料金は、",8,"㎥を越え",30,"㎥までは １㎥につき",料金表!G13,"円なので") -> 通常の従量料金は、8㎥を越え30㎥までは １㎥につき125円なので
L17: =上下水道料金計算!A55 -> 30㎥を超え50㎥まで
B18: 連合の場合は、 | D18: =CONCATENATE(上下水道料金計算!B6,"㎥","×",上下水道料金計算!D6,"世帯＝",上下水道料金計算!F6,"㎥までは基本水量") -> 8㎥×10世帯＝80㎥までは基本水量 | L18: =CONCATENATE(上下水道料金計算!B55,"㎥ × ",上下水道料金計算!D55,"円 ＝ ",TEXT(上下水道料金計算!F55,"#,##0"),"円(税抜き)") -> 20㎥ × 145円 ＝ 2,900円(税抜き) | R18: =上下水道料金計算!F55 -> 2900 | S18: =上下水道料金計算!B55 -> 20
D19: =CONCATENATE(上下水道料金計算!F6,"㎥～","(","30㎥","×",上下水道料金計算!E3,"世帯＝",上下水道料金計算!C11*上下水道料金計算!E3,"㎥)までは１㎥につき",上下水道料金計算!C10,"円となります。") -> 80㎥～(30㎥×10世帯＝300㎥)までは１㎥につき125円となります。
B20: =CONCATENATE(上下水道料金計算!C11*上下水道料金計算!E3,"㎥までは、１㎥につき",上下水道料金計算!C10,"円の計算となります。") -> 300㎥までは、１㎥につき125円の計算となります。 | L20: =上下水道料金計算!A56 -> 50㎥を超え100㎥まで
L21: =CONCATENATE(上下水道料金計算!B56,"㎥ × ",上下水道料金計算!D56,"円"," ＝ ",TEXT(上下水道料金計算!F56,"#,##0"),"円(税抜き)") -> 50㎥ × 170円 ＝ 8,500円(税抜き) | R21: =上下水道料金計算!F56 -> 8500 | S21: =上下水道料金計算!B56 -> 50
B22: よって | G22: 金額 | H22: 水量
B23: =CONCATENATE("基本料金 ＝","基本水量(",上下水道料金計算!F6,"㎥)までは",TEXT(上下水道料金計算!F8,"#,##0"),"円(税抜き)") -> 基本料金 ＝基本水量(80㎥)までは13,700円(税抜き) | G23: =上下水道料金計算!F8 -> 13700 | H23: =上下水道料金計算!F6 -> 80 | L23: =上下水道料金計算!A57 -> 100㎥を超え400㎥まで
B24: =CONCATENATE(上下水道料金計算!F6,"㎥を越える分＝",上下水道料金計算!B31,"㎥ × ",上下水道料金計算!D31,"円 ＝") -> 80㎥を越える分＝220㎥ × 125円 ＝ | G24: =IF(上下水道料金計算!B31="","",上下水道料金計算!B31*上下水道料金計算!D31) -> 27500 | H24: =上下水道料金計算!B31 -> 220 | L24: =CONCATENATE(上下水道料金計算!B57,"㎥ × ",上下水道料金計算!D57,"円 ＝ ",TEXT(上下水道料金計算!F57,"#,##0"),"円(税抜き)") -> 200㎥ × 200円 ＝ 40,000円(税抜き) | R24: =上下水道料金計算!F57 -> 40000 | S24: =上下水道料金計算!B57 -> 200
B25: =IF(上下水道料金計算!B32="","",CONCATENATE(上下水道料金計算!G11,"㎥を越える分＝",上下水道料金計算!B32,"㎥ × ",上下水道料金計算!D32,"円 ＝")) ->  | G25: =IF(上下水道料金計算!F32<=0,"",上下水道料金計算!F32) ->  | H25: =IF(上下水道料金計算!B32="","",上下水道料金計算!B32) -> 
B26: =IF(上下水道料金計算!B33="","",CONCATENATE(上下水道料金計算!G14,"㎥を越える分＝",上下水道料金計算!B33,"㎥ × ",上下水道料金計算!D33,"円＝")) ->  | G26: =IF(上下水道料金計算!F33="","",上下水道料金計算!F33) ->  | H26: =IF(上下水道料金計算!B34="","",上下水道料金計算!B33) ->  | L26: =上下水道料金計算!A58 -> 400㎥を超えるもの
B27: =IF(上下水道料金計算!B34="","",CONCATENATE(上下水道料金計算!G17,"㎥を越える分＝",上下水道料金計算!B34,"㎥ × ",上下水道料金計算!D34,"円＝")) ->  | G27: =IF(上下水道料金計算!F34="","",上下水道料金計算!F34) ->  | H27: =IF(上下水道料金計算!B34="","",上下水道料金計算!B34) ->  | L27: =CONCATENATE(上下水道料金計算!B58,"㎥ × ",上下水道料金計算!D58,"円 ＝ ",TEXT(上下水道料金計算!F58,"#,##0"),"円(税抜き)") -> ㎥ × 円 ＝ 円(税抜き) | R27: =上下水道料金計算!F58 ->  | S27: =上下水道料金計算!B58 -> 
B28: =IF(上下水道料金計算!C3<=25,"",CONCATENATE("0㎥を超え",上下水道料金計算!F6,"㎥まで口径30㎜以上に従量料金の適用")) -> 
B29: =IF(上下水道料金計算!C3<=25,"",CONCATENATE(上下水道料金計算!B36,"㎥ × ",料金表!F13,"円 ＝")) ->  | G29: =IF(B29="","",上下水道料金計算!F36) ->  | H29: =IF(G29="","",H23) ->  | L29: =IF(上下水道料金計算!C49<=25,"","0㎥を超え8㎥まで 口径30㎜以上に従量料金の適用") -> 0㎥を超え8㎥まで 口径30㎜以上に従量料金の適用
F30: 合計 | G30: =SUM(G23:G29) -> 41200 | H30: =SUM(H23:H27) -> 300
L31: =IF(上下水道料金計算!C49<=25,"",CONCATENATE(上下水道料金計算!B59,"㎥ × ",上下水道料金計算!D59,"円 ＝")) -> 8㎥ × 110円 ＝ | R31: =IF(L31="","",上下水道料金計算!F59) -> 880 | S31: =IF(R31="","","水量8㎥") -> 水量8㎥
Q32: 合 計 | R32: =SUM(R10:R31) -> 59420 | S32: =SUM(S10:S24) -> 300
B37: =CONCATENATE(TEXT(G30,"#,##0"),"円 × 1.10 ＝",TEXT((G30*1.1),"#,##0.0"),"円") -> 41,200円 × 1.10 ＝45,320.0円 | L37: =CONCATENATE(TEXT(R32,"#,##0"),"円 × 1.10 ＝",TEXT(R32*1.1,"#,##0.0"),"円") -> 59,420円 × 1.10 ＝65,362.0円
B38: 端数は、切り捨てる。よって | E38: =ROUNDDOWN(G30*1.1,0) -> 45320 | L38: 端数は切り捨てる。よって | O38: =ROUNDDOWN(R32*1.1,0) -> 65362
B40: =CONCATENATE("口径 ",上下水道料金計算!C3,"㎜ ",上下水道料金計算!E3,"世帯 ",上下水道料金計算!H3,"㎥の使用水量料金は") -> 口径 20㎜ 10世帯 300㎥の使用水量料金は | G40: =E38 -> 45320 | H40: となります。 | L40: =CONCATENATE("口径",上下水道料金計算!C49,"㎜ ",上下水道料金計算!H49,"㎥の使用水量料金は") -> 口径40㎜ 300㎥の使用水量料金は | P40: =O38 -> 65362 | Q40: となります。

Sheet 下水道説明資料
C2: 連合の計算について(下水道) | M2: 通常の計算について(下水道)
B4: =CONCATENATE(連合専用条件入力画面!H10,"世帯 使用水量 ",連合専用条件入力画面!H12,"㎥の場合") -> 10世帯 使用水量 300㎥の場合 | L4: =CONCATENATE(上下水道料金計算!E3,"世帯 使用水量 ",上下水道料金計算!H3,"㎥の場合") -> 10世帯 使用水量 300㎥の場合
B6: =CONCATENATE(連合専用条件入力画面!H10,"世帯の基本料金・水量") -> 10世帯の基本料金・水量 | L6: 基本料金・水量は
B8: =CONCATENATE("下水道使用量計算 ",上下水道料金計算!B74,"㎥×",連合専用条件入力画面!H10,"世帯＝",上下水道料金計算!B74*連合専用条件入力画面!H10,"㎥") -> 下水道使用量計算 8㎥×10世帯＝80㎥ | L8: ○基本水量は、10㎥まで | R8: 金 額 | S8: 水 量
B10: =CONCATENATE("下水道使用料金計算 ",TEXT(料金表!S6,"#,##0"),"円(税抜き) × ",連合専用条件入力画面!H10,"世帯＝",TEXT(上下水道料金計算!F101,"#,##0"),"(税抜き)") -> 下水道使用料金計算 500円(税抜き) × 10世帯＝5,000(税抜き) | L10: =CONCATENATE("○基本料金は、",TEXT(料金表!S6,"#,##0"),"円(税抜き)") -> ○基本料金は、500円(税抜き) | R10: =上下水道料金計算!F122 -> 500 | S10: =上下水道料金計算!B74 -> 8
M11: =CONCATENATE("※0㎥～",上下水道料金計算!B74,"㎥までは、同額 ",TEXT(料金表!S6,"#,##0"),"円(税抜き)") -> ※0㎥～8㎥までは、同額 500円(税抜き)
B12: =CONCATENATE(連合専用条件入力画面!H10*10,"㎥までは、",TEXT(上下水道料金計算!F101,"#,##0"),"円") -> 100㎥までは、5,000円 | E12: =CONCATENATE("※0㎥～",上下水道料金計算!F98,"㎥までは、同額",TEXT(上下水道料金計算!F101*1.08,"#,##0"),"円(税込額)") -> ※0㎥～80㎥までは、同額5,400円(税込額)
L13: 重量料金
B14: =CONCATENATE(上下水道料金計算!H3,"㎥－",上下水道料金計算!F98,"㎥＝",上下水道料金計算!H3-上下水道料金計算!F98,"㎥") -> 300㎥－80㎥＝220㎥ | E14: =CONCATENATE("のこりの",上下水道料金計算!H3-上下水道料金計算!F98,"㎥は") -> のこりの220㎥は | L14: =IF(上下水道料金計算!B124="","",上下水道料金計算!A124) -> 8㎥を超え30㎥まで
L15: =IF(上下水道料金計算!B124="","",(CONCATENATE(上下水道料金計算!B124,"㎥ × ",上下水道料金計算!D124,"円 ＝ ",TEXT(上下水道料金計算!F124,"#,##0"),"円(税抜き) "))) -> 22㎥ × 70円 ＝ 1,540円(税抜き) | R15: =上下水道料金計算!F124 -> 1540 | S15: =上下水道料金計算!B124 -> 22
B16: =CONCATENATE("通常の従量料金は、",上下水道料金計算!B74,"㎥を越え",30,"㎥までは １㎥につき",料金表!S7,"円だが") -> 通常の従量料金は、8㎥を越え30㎥までは １㎥につき70円だが
L17: =IF(上下水道料金計算!B125="","",上下水道料金計算!A125) -> 30㎥を超え50㎥まで
B18: 連合の場合は、 | D18: =CONCATENATE(上下水道料金計算!B98,"㎥","×",上下水道料金計算!D6,"世帯＝",上下水道料金計算!F98,"㎥までは基本水量") -> 8㎥×10世帯＝80㎥までは基本水量 | L18: =IF(上下水道料金計算!B125="","",(CONCATENATE(上下水道料金計算!B125,"㎥ × ",上下水道料金計算!D125,"円 ＝ ",TEXT(上下水道料金計算!F125,"#,##0"),"円(税抜き)"))) -> 20㎥ × 70円 ＝ 1,400円(税抜き) | R18: =上下水道料金計算!F125 -> 1400 | S18: =上下水道料金計算!B125 -> 20
D19: =CONCATENATE(上下水道料金計算!F98,"㎥～","(","30㎥","×",上下水道料金計算!E3,"世帯＝",上下水道料金計算!C11*上下水道料金計算!E3,"㎥)までは１㎥につき",料金表!S7,"円となります。") -> 80㎥～(30㎥×10世帯＝300㎥)までは１㎥につき70円となります。
B20: =CONCATENATE(上下水道料金計算!C11*上下水道料金計算!E3,"㎥までは、１㎥につき",料金表!S7,"円の計算となります。") -> 300㎥までは、１㎥につき70円の計算となります。 | L20: =IF(上下水道料金計算!B126="","",上下水道料金計算!A126) -> 50㎥を超え100㎥まで
L21: =IF(上下水道料金計算!B126="","",(CONCATENATE(上下水道料金計算!B126,"㎥ × ",上下水道料金計算!D126,"円"," ＝ ",TEXT(上下水道料金計算!F126,"#,##0"),"円(税抜き)"))) -> 50㎥ × 70円 ＝ 3,500円(税抜き) | R21: =上下水道料金計算!F126 -> 3500 | S21: =上下水道料金計算!B126 -> 50
B22: よって | G22: 金額 | H22: 水量
B23: =CONCATENATE("基本料金 ＝","基本水量(",上下水道料金計算!F98,"㎥)までは",TEXT(上下水道料金計算!F101,"#,##0"),"円(税抜き)") -> 基本料金 ＝基本水量(80㎥)までは5,000円(税抜き) | G23: =上下水道料金計算!F101 -> 5000 | H23: =上下水道料金計算!F98 -> 80 | L23: =IF(上下水道料金計算!B127="","",上下水道料金計算!A127) -> 100㎥を超え400㎥まで
B24: =IF(上下水道料金計算!B103="","",CONCATENATE(上下水道料金計算!A103,"=",上下水道料金計算!B103,"㎥ × ",上下水道料金計算!D103,"円 ＝")) -> 80㎥を超え300㎥まで=220㎥ × 70円 ＝ | G24: =IF(B24="","",上下水道料金計算!B103*上下水道料金計算!D103) -> 15400 | H24: =IF(上下水道料金計算!B103="","",上下水道料金計算!B103) -> 220 | L24: =IF(上下水道料金計算!B127="","",CONCATENATE(上下水道料金計算!B127,"㎥ × ",上下水道料金計算!D127,"円 ＝ ",TEXT(上下水道料金計算!F127,"#,##0"),"円(税抜き)")) -> 200㎥ × 70円 ＝ 14,000円(税抜き) | R24: =上下水道料金計算!F127 -> 14000 | S24: =上下水道料金計算!B127 -> 200
B25: =IF(上下水道料金計算!B104="","",CONCATENATE(上下水道料金計算!A104,"=",上下水道料金計算!B32,"㎥ × ",料金表!S8,"円 ＝")) -> 300㎥を超え500㎥まで=㎥ × 70円 ＝ | G25: =IF(B25="","",上下水道料金計算!B104*上下水道料金計算!D104) -> 0 | H25: =IF(上下水道料金計算!B32="","",上下水道料金計算!B32) -> 
B26: =IF(上下水道料金計算!B105="","",CONCATENATE(上下水道料金計算!A105,"=",上下水道料金計算!B33,"㎥ × ",料金表!S9,"円＝")) ->  | G26: =IF(B26="","",上下水道料金計算!B105*上下水道料金計算!D105) ->  | H26: =上下水道料金計算!B105 ->  | L26: =IF(上下水道料金計算!B128="","",上下水道料金計算!A128) -> 
B27: =IF(上下水道料金計算!B106="","",CONCATENATE(上下水道料金計算!A106,"=",上下水道料金計算!B106,"㎥ × ",料金表!S10,"円＝")) ->  | G27: =IF(B27="","",上下水道料金計算!B106*上下水道料金計算!D106) ->  | H27: =上下水道料金計算!B106 ->  | L27: =IF(上下水道料金計算!B128="","",CONCATENATE(上下水道料金計算!B128,"㎥ × ",上下水道料金計算!D128,"円 ＝ ",TEXT(上下水道料金計算!F128,"#,##0"),"円(税抜き)")) ->  | R27: =上下水道料金計算!F128 ->  | S27: =上下水道料金計算!B128 -> 
B28: =IF(上下水道料金計算!B107="","",CONCATENATE(上下水道料金計算!A107,"=",上下水道料金計算!B35,"㎥ × ",料金表!S11,"円＝")) ->  | G28: =IF(上下水道料金計算!B107="","",上下水道料金計算!F36) ->  | H28: =IF(G28="","",H23) -> 
Q29: 合 計 | R29: =SUM(R10:R27) -> 20940 | S29: =SUM(S10:S27) -> 300
F30: 合計 | G30: =SUM(G23:G28) -> 20400 | H30: =SUM(H23:H27) -> 300
B34: =CONCATENATE(TEXT(G30,"#,##0"),"円 × 1.10 ＝",TEXT((G30*1.1),"#,##0.0"),"円") -> 20,400円 × 1.10 ＝22,440.0円 | L34: =CONCATENATE(TEXT(R29,"#,##0"),"円 × 1.10 ＝",TEXT(R29*1.1,"#,##0.0"),"円") -> 20,940円 × 1.10 ＝23,034.0円
B35: 端数は、切り捨てる。よって | E35: =ROUNDDOWN(G30*1.1,0) -> 22440 | L35: 端数は切り捨てる。よって | O35: =ROUNDDOWN(R29*1.1,0) -> 23034
B37: =CONCATENATE(,上下水道料金計算!E3,"世帯 ",上下水道料金計算!H3,"㎥の使用水量料金は") -> 10世帯 300㎥の使用水量料金は | G37: =E35 -> 22440 | H37: となります。 | L37: =CONCATENATE(,上下水道料金計算!H49,"㎥の使用水量料金は") -> 300㎥の使用水量料金は | P37: =O35 -> 23034 | Q37: となります。
